[Event "Titled Tuesday Blitz July 18 Early 2023"]
[White "Becerra, Juan David"]
[Black "Dwilewicz, Katarzyna"]
[WhiteFideId "4404998"]
[BlackFideId "1148486"]
[WhiteElo "2564"]
[BlackElo "2335"]
[Result "1-0"]
[Round "6"]
[TimeControl "180+2"]
[Date "2023.07.18"]
[WhiteClock "0:00:12"]
[BlackClock "0:00:02"]
[Board "110"]

1. e4 {[%clk 0:03:00]}  c5 {[%clk 0:02:59]} 2. c3 {[%clk 0:02:58]}  d5 {[%clk 0:02:57]} 3. exd5 {[%clk 0:02:59]}  Qxd5 {[%clk 0:02:58]} 4. d4 {[%clk 0:02:58]}  Nf6 {[%clk 0:02:57]} 5. Be3 {[%clk 0:02:52]}  e6 {[%clk 0:02:53]} 6. dxc5 {[%clk 0:02:50]}  Qxd1+ {[%clk 0:02:51]} 7. Kxd1 {[%clk 0:02:51]}  Ng4 {[%clk 0:02:42]} 8. b4 {[%clk 0:02:48]}  a5 {[%clk 0:02:34]} 9. Bb5+ {[%clk 0:02:31]}  Bd7 {[%clk 0:02:31]} 10. Bxd7+ {[%clk 0:02:28]}  Nxd7 {[%clk 0:02:31]} 11. Ke2 {[%clk 0:02:27]}  Nxe3 {[%clk 0:02:30]} 12. Kxe3 {[%clk 0:02:27]}  g5 {[%clk 0:01:49]} 13. a3 {[%clk 0:02:15]}  Bg7 {[%clk 0:01:36]} 14. Ra2 {[%clk 0:02:15]}  f5 {[%clk 0:01:32]} 15. Nf3 {[%clk 0:02:11]}  Ke7 {[%clk 0:01:20]} 16. Nxg5 {[%clk 0:02:04]}  Ne5 {[%clk 0:01:06]} 17. f4 {[%clk 0:01:56]}  Ng4+ {[%clk 0:01:02]} 18. Kf3 {[%clk 0:01:55]}  h6 {[%clk 0:00:59]} 19. Nxe6 {[%clk 0:01:31]}  Kxe6 {[%clk 0:00:59]} 20. Re1+ {[%clk 0:01:31]}  Kf7 {[%clk 0:00:56]} 21. Rd2 {[%clk 0:01:23]}  Rhd8 {[%clk 0:00:53]} 22. Red1 {[%clk 0:01:22]}  Rxd2 {[%clk 0:00:41]} 23. Rxd2 {[%clk 0:01:23]}  Ke7 {[%clk 0:00:40]} 24. Rd5 {[%clk 0:01:14]}  axb4 {[%clk 0:00:34]} 25. cxb4 {[%clk 0:01:13]}  Ke6 {[%clk 0:00:26]} 26. Rd6+ {[%clk 0:01:12]}  Ke7 {[%clk 0:00:27]} 27. h3 {[%clk 0:01:12]}  Nf6 {[%clk 0:00:26]} 28. Rb6 {[%clk 0:01:12]}  Ra7 {[%clk 0:00:21]} 29. Nc3 {[%clk 0:01:11]}  Nd7 {[%clk 0:00:18]} 30. Nb5 {[%clk 0:00:59]}  Nxb6 {[%clk 0:00:13]} 31. Nxa7 {[%clk 0:00:59]}  Nc4 {[%clk 0:00:13]} 32. a4 {[%clk 0:00:58]}  Bc3 {[%clk 0:00:11]} 33. c6 {[%clk 0:00:48]}  bxc6 {[%clk 0:00:08]} 34. Nxc6+ {[%clk 0:00:49]}  Kd6 {[%clk 0:00:08]} 35. b5 {[%clk 0:00:50]}  Nb6 {[%clk 0:00:06]} 36. a5 {[%clk 0:00:48]}  Nc8 {[%clk 0:00:03]} 37. g4 {[%clk 0:00:44]}  fxg4+ {[%clk 0:00:02]} 38. Kxg4 {[%clk 0:00:44]}  Kc5 {[%clk 0:00:01]} 39. a6 {[%clk 0:00:42]}  Kxb5 {[%clk 0:00:01]} 40. a7 {[%clk 0:00:42]}  Nxa7 {[%clk 0:00:01]} 41. Nxa7+ {[%clk 0:00:43]}  Kc4 {[%clk 0:00:01]} 42. Nc6 {[%clk 0:00:43]}  Kd5 {[%clk 0:00:01]} 43. Ne7+ {[%clk 0:00:42]}  Ke6 {[%clk 0:00:02]} 44. Nf5 {[%clk 0:00:42]}  Bb4 {[%clk 0:00:01]} 45. Nxh6 {[%clk 0:00:43]}  Kf6 {[%clk 0:00:02]} 46. Nf5 {[%clk 0:00:17]}  Bf8 {[%clk 0:00:03]} 47. Ng3 {[%clk 0:00:18]}  Kg6 {[%clk 0:00:03]} 48. Ne4 {[%clk 0:00:18]}  Bg7 {[%clk 0:00:03]} 49. f5+ {[%clk 0:00:18]}  Kf7 {[%clk 0:00:04]} 50. h4 {[%clk 0:00:18]}  Bh6 {[%clk 0:00:04]} 51. Ng5+ {[%clk 0:00:13]}  Kf6 {[%clk 0:00:04]} 52. Ne4+ {[%clk 0:00:13]}  Kf7 {[%clk 0:00:04]} 53. h5 {[%clk 0:00:10]}  Be3 {[%clk 0:00:04]} 54. f6 {[%clk 0:00:09]}  Bd4 {[%clk 0:00:03]} 55. Kf5 {[%clk 0:00:09]}  Be3 {[%clk 0:00:03]} 56. Ng5+ {[%clk 0:00:09]}  Kf8 {[%clk 0:00:03]} 57. Kg6 {[%clk 0:00:10]}  Bxg5 {[%clk 0:00:01]} 58. Kxg5 {[%clk 0:00:10]}  Kf7 {[%clk 0:00:02]} 59. Kf5 {[%clk 0:00:11]}  Kf8 {[%clk 0:00:02]} 60. Kg6 {[%clk 0:00:11]}  Kg8 {[%clk 0:00:02]} 61. f7+ {[%clk 0:00:11]}  Kf8 {[%clk 0:00:03]} 62. h6 {[%clk 0:00:11]}  Ke7 {[%clk 0:00:02]} 63. Kg7 {[%clk 0:00:12]} 1-0


[Site "https://www.chess.com"]

[Event "Titled Tuesday Blitz July 18 Early 2023"]
[White "Moskvin, Anatoly"]
[Black "Shapiro, Daniel"]
[WhiteFideId "24199990"]
[BlackFideId "2001780"]
[WhiteElo "2555"]
[BlackElo "2333"]
[Result "1-0"]
[Round "6"]
[TimeControl "180+2"]
[Date "2023.07.18"]
[WhiteClock "0:00:48"]
[BlackClock "0:00:01"]
[Board "111"]

1. e4 {[%clk 0:03:00]}  e5 {[%clk 0:02:59]} 2. Nf3 {[%clk 0:03:01]}  Nc6 {[%clk 0:03:00]} 3. Bc4 {[%clk 0:03:01]}  Be7 {[%clk 0:02:59]} 4. c3 {[%clk 0:03:01]}  Nf6 {[%clk 0:02:58]} 5. d3 {[%clk 0:03:01]}  d6 {[%clk 0:02:58]} 6. Bb3 {[%clk 0:03:02]}  O-O {[%clk 0:02:57]} 7. Nbd2 {[%clk 0:03:02]}  h6 {[%clk 0:02:48]} 8. h3 {[%clk 0:03:03]}  Be6 {[%clk 0:02:48]} 9. Bc2 {[%clk 0:03:02]}  d5 {[%clk 0:02:46]} 10. Qe2 {[%clk 0:03:02]}  Re8 {[%clk 0:02:40]} 11. Nf1 {[%clk 0:03:00]}  a5 {[%clk 0:02:33]} 12. a4 {[%clk 0:03:00]}  Bc5 {[%clk 0:02:32]} 13. g4 {[%clk 0:02:59]}  Nh7 {[%clk 0:02:27]} 14. Ng3 {[%clk 0:02:55]}  Qd7 {[%clk 0:02:00]} 15. Nh4 {[%clk 0:02:37]}  Rad8 {[%clk 0:01:48]} 16. Nhf5 {[%clk 0:02:37]}  Ne7 {[%clk 0:01:31]} 17. h4 {[%clk 0:02:18]}  Ng6 {[%clk 0:01:31]} 18. Qf3 {[%clk 0:01:58]}  dxe4 {[%clk 0:01:18]} 19. dxe4 {[%clk 0:01:57]}  Bc4 {[%clk 0:01:14]} 20. Nh5 {[%clk 0:01:41]}  Bf8 {[%clk 0:01:05]} 21. g5 {[%clk 0:01:22]}  hxg5 {[%clk 0:00:59]} 22. hxg5 {[%clk 0:01:23]}  Ne7 {[%clk 0:00:28]} 23. Nf6+ {[%clk 0:00:54]}  Nxf6 {[%clk 0:00:13]} 24. Qh3 {[%clk 0:00:51]}  Ng6 {[%clk 0:00:11]} 25. gxf6 {[%clk 0:00:50]}  Bc5 {[%clk 0:00:01]} 26. Qh7+ {[%clk 0:00:48]} 1-0


[Site "https://www.chess.com"]

[Event "Titled Tuesday Blitz July 18 Early 2023"]
[White "KorolDimitriy75"]
[Black "Galiot, Goran"]
[BlackFideId "931560"]
[WhiteElo "2405"]
[BlackElo "2638"]
[Result "0-1"]
[Round "6"]
[TimeControl "180+2"]
[Date "2023.07.18"]
[WhiteClock "0:00:00"]
[BlackClock "0:00:06"]
[Board "115"]

1. d4 {[%clk 0:03:00]}  Nf6 {[%clk 0:02:59]} 2. c4 {[%clk 0:03:00]}  g6 {[%clk 0:03:00]} 3. Nc3 {[%clk 0:03:01]}  Bg7 {[%clk 0:03:01]} 4. e4 {[%clk 0:03:01]}  d6 {[%clk 0:03:01]} 5. Nf3 {[%clk 0:03:02]}  O-O {[%clk 0:03:01]} 6. Be2 {[%clk 0:03:03]}  Nfd7 {[%clk 0:03:02]} 7. O-O {[%clk 0:03:03]}  e5 {[%clk 0:03:02]} 8. Re1 {[%clk 0:03:03]}  a5 {[%clk 0:03:02]} 9. Bf1 {[%clk 0:03:01]}  Nc6 {[%clk 0:03:02]} 10. d5 {[%clk 0:02:22]}  Ncb8 {[%clk 0:03:02]} 11. b3 {[%clk 0:01:58]}  f5 {[%clk 0:03:00]} 12. a3 {[%clk 0:01:55]}  Nc5 {[%clk 0:02:53]} 13. Nd2 {[%clk 0:01:53]}  Bh6 {[%clk 0:02:46]} 14. Rb1 {[%clk 0:01:43]}  a4 {[%clk 0:02:03]} 15. b4 {[%clk 0:01:38]}  Bxd2 {[%clk 0:02:03]} 16. Bxd2 {[%clk 0:01:36]}  Nb3 {[%clk 0:02:04]} 17. Bh6 {[%clk 0:00:36]}  Rf7 {[%clk 0:02:03]} 18. Nxa4 {[%clk 0:00:36]}  Nd4 {[%clk 0:02:00]} 19. Be3 {[%clk 0:00:36]}  Qf6 {[%clk 0:01:45]} 20. Nc3 {[%clk 0:00:27]}  Rxa3 {[%clk 0:01:43]} 21. Bxd4 {[%clk 0:00:27]}  exd4 {[%clk 0:01:42]} 22. Nb5 {[%clk 0:00:27]}  fxe4 {[%clk 0:01:07]} 23. Nxa3 {[%clk 0:00:23]}  Qxf2+ {[%clk 0:01:07]} 24. Kh1 {[%clk 0:00:24]}  Bf5 {[%clk 0:00:52]} 25. Re2 {[%clk 0:00:20]}  Qh4 {[%clk 0:00:45]} 26. Qxd4 {[%clk 0:00:20]}  Nd7 {[%clk 0:00:44]} 27. Rbe1 {[%clk 0:00:19]}  Nf6 {[%clk 0:00:43]} 28. Nb5 {[%clk 0:00:18]}  Ng4 {[%clk 0:00:43]} 29. h3 {[%clk 0:00:19]}  Nf6 {[%clk 0:00:33]} 30. Nc3 {[%clk 0:00:18]}  Nh5 {[%clk 0:00:33]} 31. Kg1 {[%clk 0:00:15]}  Ng3 {[%clk 0:00:31]} 32. Re3 {[%clk 0:00:15]}  Qg5 {[%clk 0:00:23]} 33. Qd2 {[%clk 0:00:13]}  Bxh3 {[%clk 0:00:21]} 34. Qc2 {[%clk 0:00:08]}  Qf4 {[%clk 0:00:15]} 35. gxh3 {[%clk 0:00:05]}  Nxf1 {[%clk 0:00:16]} 36. R3e2 {[%clk 0:00:04]}  Ng3 {[%clk 0:00:14]} 37. Rg2 {[%clk 0:00:03]}  e3 {[%clk 0:00:13]} 38. Qd3 {[%clk 0:00:04]}  Nf5 {[%clk 0:00:12]} 39. Ne4 {[%clk 0:00:03]}  h6 {[%clk 0:00:07]} 40. Rf1 {[%clk 0:00:00]}  Qe5 {[%clk 0:00:06]} 0-1


[Site "https://www.chess.com"]

[Event "Titled Tuesday Blitz July 18 Early 2023"]
[White "Romero Ruscalleda, Josep"]
[Black "Shishkov, Andrei"]
[WhiteFideId "2231859"]
[BlackFideId "4500563"]
[WhiteElo "2396"]
[BlackElo "2572"]
[Result "0-1"]
[Round "6"]
[TimeControl "180+2"]
[Date "2023.07.18"]
[WhiteClock "0:00:50"]
[BlackClock "0:00:19"]
[Board "120"]

1. e4 {[%clk 0:03:00]}  d5 {[%clk 0:02:59]} 2. exd5 {[%clk 0:03:00]}  Nf6 {[%clk 0:02:59]} 3. Nf3 {[%clk 0:03:01]}  Nxd5 {[%clk 0:03:00]} 4. Nc3 {[%clk 0:03:01]}  Bg4 {[%clk 0:02:59]} 5. Be2 {[%clk 0:02:59]}  e6 {[%clk 0:02:59]} 6. O-O {[%clk 0:02:59]}  Be7 {[%clk 0:02:53]} 7. Ne4 {[%clk 0:02:54]}  Nf4 {[%clk 0:02:48]} 8. d3 {[%clk 0:02:42]}  Nxe2+ {[%clk 0:02:46]} 9. Qxe2 {[%clk 0:02:43]}  Nc6 {[%clk 0:02:45]} 10. Be3 {[%clk 0:02:32]}  O-O {[%clk 0:02:39]} 11. h3 {[%clk 0:02:31]}  Bh5 {[%clk 0:02:34]} 12. a3 {[%clk 0:02:29]}  Ne5 {[%clk 0:02:20]} 13. g4 {[%clk 0:02:26]}  Nxf3+ {[%clk 0:02:19]} 14. Qxf3 {[%clk 0:02:25]}  Bg6 {[%clk 0:02:20]} 15. Nd2 {[%clk 0:02:16]}  c6 {[%clk 0:02:14]} 16. Nc4 {[%clk 0:02:15]}  Qd5 {[%clk 0:02:00]} 17. Qxd5 {[%clk 0:02:12]}  cxd5 {[%clk 0:01:48]} 18. Ne5 {[%clk 0:02:12]}  Bf6 {[%clk 0:01:48]} 19. Nd7 {[%clk 0:02:03]}  Rfc8 {[%clk 0:01:29]} 20. Nxf6+ {[%clk 0:02:02]}  gxf6 {[%clk 0:01:30]} 21. f4 {[%clk 0:02:01]}  Rxc2 {[%clk 0:01:24]} 22. f5 {[%clk 0:01:53]}  exf5 {[%clk 0:01:24]} 23. gxf5 {[%clk 0:01:53]}  Bh5 {[%clk 0:01:25]} 24. Bd4 {[%clk 0:01:51]}  Re8 {[%clk 0:01:14]} 25. Rae1 {[%clk 0:01:42]}  Ree2 {[%clk 0:01:10]} 26. Rxe2 {[%clk 0:01:34]}  Bxe2 {[%clk 0:01:11]} 27. Rf2 {[%clk 0:01:23]}  Bxd3 {[%clk 0:01:10]} 28. Rxc2 {[%clk 0:01:23]}  Bxc2 {[%clk 0:01:10]} 29. Bxa7 {[%clk 0:01:24]}  Bxf5 {[%clk 0:01:08]} 30. Bd4 {[%clk 0:01:25]}  Bxh3 {[%clk 0:01:05]} 31. Bxf6 {[%clk 0:01:24]}  h5 {[%clk 0:00:57]} 32. Kf2 {[%clk 0:01:23]}  Kh7 {[%clk 0:00:57]} 33. Ke3 {[%clk 0:01:21]}  Kg6 {[%clk 0:00:55]} 34. Be7 {[%clk 0:01:21]}  Kf5 {[%clk 0:00:50]} 35. b4 {[%clk 0:01:20]}  Bf1 {[%clk 0:00:45]} 36. a4 {[%clk 0:01:20]}  Ke5 {[%clk 0:00:33]} 37. Bc5 {[%clk 0:01:15]}  h4 {[%clk 0:00:31]} 38. Bd4+ {[%clk 0:01:15]}  Kf5 {[%clk 0:00:30]} 39. Kf2 {[%clk 0:01:10]}  Bd3 {[%clk 0:00:22]} 40. b5 {[%clk 0:01:04]}  Ke4 {[%clk 0:00:20]} 41. Bf6 {[%clk 0:01:04]}  h3 {[%clk 0:00:19]} 42. Kg3 {[%clk 0:00:56]}  Bf1 {[%clk 0:00:19]} 43. a5 {[%clk 0:00:51]}  Bxb5 {[%clk 0:00:18]} 44. Kxh3 {[%clk 0:00:52]}  d4 {[%clk 0:00:17]} 45. Kg2 {[%clk 0:00:52]}  Ke3 {[%clk 0:00:17]} 46. Bg5+ {[%clk 0:00:50]}  Ke2 {[%clk 0:00:18]} 47. Kg3 {[%clk 0:00:48]}  d3 {[%clk 0:00:18]} 48. Bc1 {[%clk 0:00:48]}  d2 {[%clk 0:00:18]} 49. Bxd2 {[%clk 0:00:48]}  Kxd2 {[%clk 0:00:19]} 50. Kf4 {[%clk 0:00:49]}  Kc3 {[%clk 0:00:18]} 51. Ke5 {[%clk 0:00:49]}  Kb4 {[%clk 0:00:18]} 52. a6 {[%clk 0:00:50]}  bxa6 {[%clk 0:00:18]} 53. Kf6 {[%clk 0:00:49]}  Bc4 {[%clk 0:00:18]} 54. Ke5 {[%clk 0:00:49]}  a5 {[%clk 0:00:19]} 55. Kd4 {[%clk 0:00:50]}  a4 {[%clk 0:00:19]} 0-1


[Site "https://www.chess.com"]

[Event "Titled Tuesday Blitz July 18 Early 2023"]
[White "Ganiev, Roman"]
[Black "Duarte, Leonardo"]
[WhiteFideId "4131452"]
[BlackFideId "110582"]
[WhiteElo "2553"]
[BlackElo "2384"]
[Result "1-0"]
[Round "6"]
[TimeControl "180+2"]
[Date "2023.07.18"]
[WhiteClock "0:00:07"]
[BlackClock "0:00:00"]
[Board "123"]

1. e4 {[%clk 0:02:54]}  e5 {[%clk 0:02:49]} 2. d4 {[%clk 0:02:54]}  exd4 {[%clk 0:02:48]} 3. Qxd4 {[%clk 0:02:55]}  Nc6 {[%clk 0:02:44]} 4. Qe3 {[%clk 0:02:53]}  b6 {[%clk 0:02:42]} 5. Bc4 {[%clk 0:02:51]}  Bc5 {[%clk 0:02:41]} 6. Qe2 {[%clk 0:02:51]}  Bb7 {[%clk 0:02:37]} 7. Nf3 {[%clk 0:02:50]}  Nge7 {[%clk 0:02:31]} 8. Nc3 {[%clk 0:02:50]}  Ng6 {[%clk 0:02:22]} 9. Be3 {[%clk 0:02:48]}  Nge5 {[%clk 0:02:10]} 10. Bxc5 {[%clk 0:02:44]}  bxc5 {[%clk 0:02:10]} 11. Nxe5 {[%clk 0:02:40]}  Nxe5 {[%clk 0:02:10]} 12. f4 {[%clk 0:02:40]}  Nxc4 {[%clk 0:01:57]} 13. Qxc4 {[%clk 0:02:41]}  Qh4+ {[%clk 0:01:57]} 14. g3 {[%clk 0:02:40]}  Qe7 {[%clk 0:01:57]} 15. O-O-O {[%clk 0:02:39]}  d6 {[%clk 0:01:57]} 16. Rhe1 {[%clk 0:02:02]}  O-O {[%clk 0:01:52]} 17. e5 {[%clk 0:02:02]}  dxe5 {[%clk 0:00:55]} 18. Rxe5 {[%clk 0:01:59]}  Qf6 {[%clk 0:00:56]} 19. Qxc5 {[%clk 0:01:58]}  Bf3 {[%clk 0:00:53]} 20. Rd3 {[%clk 0:01:47]}  Bg4 {[%clk 0:00:53]} 21. Rg5 {[%clk 0:01:29]}  Be6 {[%clk 0:00:45]} 22. Qe5 {[%clk 0:01:02]}  Qh6 {[%clk 0:00:45]} 23. h4 {[%clk 0:00:57]}  Bc4 {[%clk 0:00:41]} 24. Rh5 {[%clk 0:00:33]}  Qc6 {[%clk 0:00:36]} 25. Rd4 {[%clk 0:00:20]}  Ba6 {[%clk 0:00:12]} 26. Qc5 {[%clk 0:00:19]}  Qh1+ {[%clk 0:00:11]} 27. Rd1 {[%clk 0:00:19]}  Qg2 {[%clk 0:00:12]} 28. Rg5 {[%clk 0:00:18]}  h6 {[%clk 0:00:10]} 29. Rgd5 {[%clk 0:00:14]}  Qxg3 {[%clk 0:00:10]} 30. Qg1 {[%clk 0:00:07]}  Qxf4+ {[%clk 0:00:10]} 31. Kb1 {[%clk 0:00:08]}  Rab8 {[%clk 0:00:08]} 32. R5d4 {[%clk 0:00:08]}  Qe5 {[%clk 0:00:05]} 33. b3 {[%clk 0:00:02]}  g6 {[%clk 0:00:02]} 34. Nd5 {[%clk 0:00:02]}  h5 {[%clk 0:00:01]} 35. R4d2 {[%clk 0:00:02]}  Qg7 {[%clk 0:00:01]} 36. Qg5 {[%clk 0:00:02]}  f6 {[%clk 0:00:01]} 37. Qg3 {[%clk 0:00:03]}  c6 {[%clk 0:00:01]} 38. Nc3 {[%clk 0:00:04]}  Rbe8 {[%clk 0:00:01]} 39. Na4 {[%clk 0:00:04]}  Bb5 {[%clk 0:00:01]} 40. Nc5 {[%clk 0:00:04]}  f5 {[%clk 0:00:02]} 41. Qg5 {[%clk 0:00:04]}  Qf6 {[%clk 0:00:02]} 42. Nd7 {[%clk 0:00:03]}  Qxg5 {[%clk 0:00:02]} 43. hxg5 {[%clk 0:00:04]}  Rf7 {[%clk 0:00:02]} 44. Nf6+ {[%clk 0:00:05]}  Rxf6 {[%clk 0:00:02]} 45. gxf6 {[%clk 0:00:06]}  Kf7 {[%clk 0:00:03]} 46. Rg2 {[%clk 0:00:07]}  Kxf6 {[%clk 0:00:03]} 47. Rd6+ {[%clk 0:00:07]}  Ke5 {[%clk 0:00:03]} 48. Rdxg6 {[%clk 0:00:07]}  f4 {[%clk 0:00:04]} 49. R6g5+ {[%clk 0:00:07]}  Ke4 {[%clk 0:00:04]} 50. Rxh5 {[%clk 0:00:08]}  f3 {[%clk 0:00:04]} 51. Rf2 {[%clk 0:00:06]}  Ke3 {[%clk 0:00:05]} 52. Rhh2 {[%clk 0:00:07]}  Rg8 {[%clk 0:00:03]} 53. c4 {[%clk 0:00:07]}  Ba6 {[%clk 0:00:02]} 54. Rc2 {[%clk 0:00:06]}  c5 {[%clk 0:00:02]} 55. Rc3+ {[%clk 0:00:06]}  Kf4 {[%clk 0:00:01]} 56. Rf2 {[%clk 0:00:07]}  Bb7 {[%clk 0:00:00]} 57. Kc2 {[%clk 0:00:07]} 1-0


[Site "https://www.chess.com"]

[Event "Titled Tuesday Blitz July 18 Early 2023"]
[White "Rodriguez Santiago, Jaime"]
[Black "Gavrilov, Maxim"]
[WhiteFideId "3100898"]
[BlackFideId "24271454"]
[WhiteElo "2383"]
[BlackElo "2548"]
[Result "0-1"]
[Round "6"]
[TimeControl "180+2"]
[Date "2023.07.18"]
[WhiteClock "0:00:02"]
[BlackClock "0:00:13"]
[Board "124"]

1. c4 {[%clk 0:03:00]}  Nf6 {[%clk 0:02:57]} 2. d4 {[%clk 0:03:00]}  e6 {[%clk 0:02:56]} 3. Nc3 {[%clk 0:03:00]}  Bb4 {[%clk 0:02:56]} 4. e3 {[%clk 0:02:59]}  b6 {[%clk 0:02:52]} 5. Ne2 {[%clk 0:02:52]}  Bb7 {[%clk 0:02:52]} 6. a3 {[%clk 0:02:52]}  Be7 {[%clk 0:02:49]} 7. Ng3 {[%clk 0:02:49]}  O-O {[%clk 0:02:49]} 8. Bd3 {[%clk 0:02:48]}  c5 {[%clk 0:02:47]} 9. O-O {[%clk 0:02:46]}  cxd4 {[%clk 0:02:47]} 10. exd4 {[%clk 0:02:46]}  d5 {[%clk 0:02:48]} 11. f4 {[%clk 0:02:27]}  Nbd7 {[%clk 0:02:40]} 12. f5 {[%clk 0:02:24]}  e5 {[%clk 0:02:36]} 13. cxd5 {[%clk 0:02:15]}  exd4 {[%clk 0:02:33]} 14. Nce2 {[%clk 0:02:06]}  Nxd5 {[%clk 0:02:27]} 15. Nf4 {[%clk 0:01:57]}  Nc5 {[%clk 0:02:19]} 16. Ngh5 {[%clk 0:01:46]}  Bf6 {[%clk 0:01:59]} 17. Nxf6+ {[%clk 0:01:39]}  Nxf6 {[%clk 0:01:57]} 18. Bc4 {[%clk 0:01:33]}  Rc8 {[%clk 0:01:27]} 19. Ba2 {[%clk 0:01:11]}  d3 {[%clk 0:01:25]} 20. Bd2 {[%clk 0:01:07]}  Qd4+ {[%clk 0:01:19]} 21. Kh1 {[%clk 0:01:04]}  Nce4 {[%clk 0:01:17]} 22. Bc3 {[%clk 0:00:52]}  Nxc3 {[%clk 0:01:13]} 23. bxc3 {[%clk 0:00:52]}  Rxc3 {[%clk 0:01:07]} 24. Nh5 {[%clk 0:00:51]}  Rc2 {[%clk 0:00:59]} 25. Rg1 {[%clk 0:00:29]}  Nxh5 {[%clk 0:00:47]} 26. Qxh5 {[%clk 0:00:30]}  Qe4 {[%clk 0:00:47]} 27. Qg5 {[%clk 0:00:28]}  h6 {[%clk 0:00:35]} 28. Qg3 {[%clk 0:00:26]}  Qxf5 {[%clk 0:00:34]} 29. Bb1 {[%clk 0:00:26]}  Rd2 {[%clk 0:00:20]} 30. Qe3 {[%clk 0:00:23]}  Qg5 {[%clk 0:00:18]} 31. Qh3 {[%clk 0:00:17]}  Re8 {[%clk 0:00:17]} 32. Bxd3 {[%clk 0:00:10]}  Re3 {[%clk 0:00:17]} 33. Rae1 {[%clk 0:00:05]}  Rdxd3 {[%clk 0:00:13]} 34. Rxe3 {[%clk 0:00:02]}  Rxe3 {[%clk 0:00:13]} 0-1


[Site "https://www.chess.com"]

[Event "Titled Tuesday Blitz July 18 Early 2023"]
[White "Gulamali, Kazim"]
[Black "Wernberg, Hugo"]
[WhiteFideId "2024764"]
[BlackFideId "1737511"]
[WhiteElo "2510"]
[BlackElo "2366"]
[Result "1-0"]
[Round "6"]
[TimeControl "180+2"]
[Date "2023.07.18"]
[WhiteClock "0:00:31"]
[BlackClock "0:00:01"]
[Board "128"]

1. e4 {[%clk 0:03:00]}  e5 {[%clk 0:03:00]} 2. Nf3 {[%clk 0:02:54]}  Nc6 {[%clk 0:02:59]} 3. Bb5 {[%clk 0:02:51]}  a6 {[%clk 0:03:00]} 4. Ba4 {[%clk 0:02:41]}  Nf6 {[%clk 0:03:00]} 5. Qe2 {[%clk 0:02:41]}  b5 {[%clk 0:02:58]} 6. Bb3 {[%clk 0:02:40]}  Be7 {[%clk 0:02:58]} 7. O-O {[%clk 0:02:40]}  O-O {[%clk 0:02:57]} 8. c3 {[%clk 0:02:40]}  d5 {[%clk 0:02:57]} 9. d3 {[%clk 0:02:38]}  dxe4 {[%clk 0:02:46]} 10. dxe4 {[%clk 0:02:37]}  Bg4 {[%clk 0:02:45]} 11. h3 {[%clk 0:02:29]}  Bh5 {[%clk 0:02:43]} 12. Rd1 {[%clk 0:02:29]}  Bd6 {[%clk 0:02:37]} 13. Nbd2 {[%clk 0:02:24]}  Qe7 {[%clk 0:02:17]} 14. Nf1 {[%clk 0:02:24]}  Rfd8 {[%clk 0:01:59]} 15. Ng3 {[%clk 0:02:20]}  Bg6 {[%clk 0:01:59]} 16. Nh4 {[%clk 0:02:08]}  Bc5 {[%clk 0:01:45]} 17. Bg5 {[%clk 0:02:00]}  Rxd1+ {[%clk 0:01:34]} 18. Rxd1 {[%clk 0:02:01]}  Rd8 {[%clk 0:01:33]} 19. Nhf5 {[%clk 0:02:01]}  Qf8 {[%clk 0:01:30]} 20. Bxf6 {[%clk 0:01:32]}  gxf6 {[%clk 0:01:31]} 21. Bd5 {[%clk 0:01:14]}  Ne7 {[%clk 0:01:13]} 22. Nxe7+ {[%clk 0:01:13]}  Qxe7 {[%clk 0:01:03]} 23. b4 {[%clk 0:01:11]}  Bb6 {[%clk 0:00:56]} 24. h4 {[%clk 0:01:11]}  h6 {[%clk 0:00:48]} 25. h5 {[%clk 0:01:09]}  Bh7 {[%clk 0:00:47]} 26. a4 {[%clk 0:01:08]}  Qd7 {[%clk 0:00:33]} 27. a5 {[%clk 0:01:07]}  Ba7 {[%clk 0:00:30]} 28. Bb3 {[%clk 0:00:58]}  Qe7 {[%clk 0:00:26]} 29. Qg4+ {[%clk 0:00:54]}  Kf8 {[%clk 0:00:21]} 30. Rd5 {[%clk 0:00:44]}  c6 {[%clk 0:00:19]} 31. Rd1 {[%clk 0:00:35]}  Rxd1+ {[%clk 0:00:15]} 32. Qxd1 {[%clk 0:00:36]}  Ke8 {[%clk 0:00:12]} 33. Qd2 {[%clk 0:00:36]}  Qf8 {[%clk 0:00:10]} 34. c4 {[%clk 0:00:33]}  Bb8 {[%clk 0:00:05]} 35. c5 {[%clk 0:00:33]}  Bc7 {[%clk 0:00:04]} 36. f3 {[%clk 0:00:33]}  Qg7 {[%clk 0:00:02]} 37. Kf2 {[%clk 0:00:32]}  Qg5 {[%clk 0:00:02]} 38. Qxg5 {[%clk 0:00:32]}  hxg5 {[%clk 0:00:01]} 39. Nf1 {[%clk 0:00:33]}  Kf8 {[%clk 0:00:02]} 40. Ne3 {[%clk 0:00:32]}  Ke7 {[%clk 0:00:02]} 41. g4 {[%clk 0:00:33]}  Kf8 {[%clk 0:00:02]} 42. Bd5 {[%clk 0:00:33]}  cxd5 {[%clk 0:00:02]} 43. Nxd5 {[%clk 0:00:34]}  Bd8 {[%clk 0:00:02]} 44. c6 {[%clk 0:00:34]}  Ke8 {[%clk 0:00:02]} 45. c7 {[%clk 0:00:33]}  Kd7 {[%clk 0:00:02]} 46. cxd8=Q+ {[%clk 0:00:31]}  Kxd8 {[%clk 0:00:01]} 47. Nxf6 {[%clk 0:00:31]} 1-0


[Site "https://www.chess.com"]

[Event "Titled Tuesday Blitz July 18 Early 2023"]
[White "Mmukka"]
[Black "micke12a"]
[WhiteElo "2485"]
[BlackElo "2345"]
[Result "1-0"]
[Round "6"]
[TimeControl "180+2"]
[Date "2023.07.18"]
[WhiteClock "0:00:52"]
[BlackClock "0:00:03"]
[Board "134"]

1. e4 {[%clk 0:03:00]}  c5 {[%clk 0:02:32]} 2. Nf3 {[%clk 0:02:59]}  d6 {[%clk 0:02:32]} 3. d4 {[%clk 0:02:58]}  cxd4 {[%clk 0:02:33]} 4. Nxd4 {[%clk 0:02:58]}  Nf6 {[%clk 0:02:34]} 5. Nc3 {[%clk 0:02:58]}  g6 {[%clk 0:02:35]} 6. Be2 {[%clk 0:02:57]}  Bg7 {[%clk 0:02:35]} 7. O-O {[%clk 0:02:57]}  O-O {[%clk 0:02:36]} 8. Bg5 {[%clk 0:02:57]}  Nc6 {[%clk 0:02:37]} 9. Nb3 {[%clk 0:02:57]}  Be6 {[%clk 0:02:36]} 10. Kh1 {[%clk 0:02:57]}  a5 {[%clk 0:02:37]} 11. a4 {[%clk 0:02:57]}  Rc8 {[%clk 0:02:37]} 12. f4 {[%clk 0:02:57]}  Qb6 {[%clk 0:02:37]} 13. f5 {[%clk 0:02:31]}  Bxb3 {[%clk 0:02:35]} 14. cxb3 {[%clk 0:02:30]}  Nb4 {[%clk 0:02:20]} 15. Bc4 {[%clk 0:02:22]}  Rc5 {[%clk 0:01:44]} 16. Be3 {[%clk 0:02:19]}  Qc7 {[%clk 0:01:41]} 17. Bxc5 {[%clk 0:02:18]}  Qxc5 {[%clk 0:01:42]} 18. fxg6 {[%clk 0:02:15]}  hxg6 {[%clk 0:01:42]} 19. Qf3 {[%clk 0:02:14]}  Nc2 {[%clk 0:01:34]} 20. Rac1 {[%clk 0:02:11]}  Ne3 {[%clk 0:01:30]} 21. Rfe1 {[%clk 0:02:05]}  Neg4 {[%clk 0:01:24]} 22. Rf1 {[%clk 0:01:57]}  Ne5 {[%clk 0:01:20]} 23. Qe2 {[%clk 0:01:55]}  Nfg4 {[%clk 0:01:08]} 24. Nd5 {[%clk 0:01:54]}  Bh6 {[%clk 0:00:54]} 25. Rc3 {[%clk 0:01:41]}  Qd4 {[%clk 0:00:41]} 26. Rh3 {[%clk 0:01:36]}  Bg5 {[%clk 0:00:36]} 27. Rg3 {[%clk 0:01:31]}  e6 {[%clk 0:00:35]} 28. Nc3 {[%clk 0:01:08]}  f5 {[%clk 0:00:16]} 29. Bxe6+ {[%clk 0:01:05]}  Kg7 {[%clk 0:00:16]} 30. exf5 {[%clk 0:01:05]}  Rh8 {[%clk 0:00:14]} 31. f6+ {[%clk 0:00:56]}  Bxf6 {[%clk 0:00:12]} 32. Bxg4 {[%clk 0:00:55]}  Nxg4 {[%clk 0:00:08]} 33. Qxg4 {[%clk 0:00:55]}  Qe5 {[%clk 0:00:03]} 34. Qxg6+ {[%clk 0:00:52]}  Kf8 {[%clk 0:00:03]} 1-0


[Site "https://www.chess.com"]